[Event "*** Titled Tuesday Blitz"]
[Site "Chess.com"]
[Date "2018.12.04"]
[Round "9"]
[White "Zarikovs1999"]
[Black "NemtsevIgor"]
[Result "1-0"]
[WhiteElo "2351"]
[BlackElo "2324"]
[TimeControl "180+2"]
[EndTime "15:10:24 PST"]
[Termination "Zarikovs1999 won by resignation"]

1. Nf3 {[%clk 0:02:58.8]} 1... c6 {[%clk 0:03:00.1]} 2. g3 {[%clk 0:02:56.4]}
2... d6 {[%clk 0:03:01]} 3. Bg2 {[%clk 0:02:58.3]} 3... Nd7 {[%clk 0:03:01.1]}
4. O-O {[%clk 0:02:58.8]} 4... Qa5 {[%clk 0:02:59.6]} 5. c4 {[%clk 0:02:51.1]}
5... g5 {[%clk 0:02:59.9]} 6. d4 {[%clk 0:02:28.8]} 6... g4 {[%clk 0:02:54.2]}
7. Nfd2 {[%clk 0:02:28.3]} 7... Bg7 {[%clk 0:02:52.8]} 8. Nb3 {[%clk 0:02:27.5]}
8... Qf5 {[%clk 0:02:47.8]} 9. Nc3 {[%clk 0:02:26.6]} 9... h5 {[%clk 0:02:48.2]}
10. e4 {[%clk 0:02:25.7]} 10... Qh7 {[%clk 0:02:49.1]} 11. h4 {[%clk 0:02:24.1]}
11... gxh3 {[%clk 0:02:48.8]} 12. Bxh3 {[%clk 0:02:15.8]} 12... Ndf6 {[%clk
0:02:44.9]} 13. Bxc8 {[%clk 0:02:15.2]} 13... Rxc8 {[%clk 0:02:45.5]} 14. Bg5
{[%clk 0:02:13.4]} 14... Bh6 {[%clk 0:02:38.6]} 15. Qd2 {[%clk 0:01:51.7]} 15...
Qg7 {[%clk 0:02:36.3]} 16. Bxh6 {[%clk 0:01:33.6]} 16... Rxh6 {[%clk 0:02:36.6]}
17. Kg2 {[%clk 0:01:26.6]} 17... h4 {[%clk 0:02:36.9]} 18. Rh1 {[%clk 0:01:24]}
18... Kd7 {[%clk 0:02:14.8]} 19. e5 {[%clk 0:01:03.8]} 19... Ng4 {[%clk
0:02:09.5]} 20. Qf4 {[%clk 0:00:52.3]} 20... dxe5 {[%clk 0:01:48.2]} 21. dxe5
{[%clk 0:00:52.9]} 21... Nxe5 {[%clk 0:01:44.9]} 22. Rad1+ {[%clk 0:00:46.7]}
22... Ke8 {[%clk 0:01:44.8]} 23. Rxh4 {[%clk 0:00:43]} 23... Rf6 {[%clk
0:01:34.3]} 24. Qe3 {[%clk 0:00:34.3]} 24... Rf3 {[%clk 0:01:09.3]} 25. Qxa7
{[%clk 0:00:29.6]} 25... Qf6 {[%clk 0:01:00.1]} 26. Rd2 {[%clk 0:00:27.7]} 26...
Nd3 {[%clk 0:00:55.6]} 27. Rxd3 {[%clk 0:00:19.6]} 27... Rxd3 {[%clk 0:00:54.4]}
28. Qxb7 {[%clk 0:00:20.9]} 28... Rcd8 {[%clk 0:00:55.2]} 29. Rf4 {[%clk
0:00:18.9]} 29... Qd6 {[%clk 0:00:46.7]} 30. Ne4 {[%clk 0:00:12.5]} 30... Qg6
{[%clk 0:00:38]} 31. Nbc5 {[%clk 0:00:08.4]} 31... Rd1 {[%clk 0:00:32.4]} 32. a4
{[%clk 0:00:05.4]} 32... f5 {[%clk 0:00:29.1]} 33. Nc3 {[%clk 0:00:04.4]} 33...
Nf6 {[%clk 0:00:27.2]} 34. Ne6 {[%clk 0:00:04.3]} 34... R8d7 {[%clk 0:00:18.3]}
35. Qc8+ {[%clk 0:00:04.6]} 35... Rd8 {[%clk 0:00:19.2]} 36. Qxc6+ {[%clk
0:00:05.1]} 36... R8d7 {[%clk 0:00:18.4]} 37. Nxd1 {[%clk 0:00:04.9]} 37... Ne4
{[%clk 0:00:18.3]} 38. Nc7+ {[%clk 0:00:04.1]} 38... Kd8 {[%clk 0:00:18.9]} 39.
Qxg6 {[%clk 0:00:05.1]} 39... Kxc7 {[%clk 0:00:19.3]} 40. Qxf5 {[%clk
0:00:06.5]} 40... e6 {[%clk 0:00:20.3]} 41. Qxe4 {[%clk 0:00:07.3]} 41... Rxd1
{[%clk 0:00:21.6]} 42. Qe5+ {[%clk 0:00:07.6]} 1-0

[Event "*** Titled Tuesday Blitz"]
[Site "Chess.com"]
[Date "2018.12.04"]
[Round "9"]
[White "Korchmar_Vasiliy"]
[Black "Guenplen"]
[Result "1/2-1/2"]
[WhiteElo "2767"]
[BlackElo "2836"]
[TimeControl "180+2"]
[EndTime "15:10:29 PST"]
[Termination "Game drawn by repetition"]

1. d4 {[%clk 0:03:01.9]} 1... d5 {[%clk 0:03:00.7]} 2. c4 {[%clk 0:03:02.5]}
2... e6 {[%clk 0:03:02]} 3. Nf3 {[%clk 0:03:03.4]} 3... Nf6 {[%clk 0:03:03.3]}
4. g3 {[%clk 0:03:04.6]} 4... dxc4 {[%clk 0:03:03.7]} 5. Bg2 {[%clk 0:03:05.7]}
5... Bd7 {[%clk 0:03:05.1]} 6. Ne5 {[%clk 0:03:06.3]} 6... Bc6 {[%clk
0:03:05.9]} 7. Nxc6 {[%clk 0:03:07.8]} 7... Nxc6 {[%clk 0:03:07.8]} 8. O-O
{[%clk 0:03:08.4]} 8... Qd7 {[%clk 0:03:09]} 9. e3 {[%clk 0:03:08.7]} 9... Rd8
{[%clk 0:03:09]} 10. Qe2 {[%clk 0:02:58.7]} 10... e5 {[%clk 0:03:07]} 11. Nc3
{[%clk 0:02:57.2]} 11... Be7 {[%clk 0:03:06.1]} 12. d5 {[%clk 0:02:50.3]} 12...
Nb4 {[%clk 0:03:05.8]} 13. Qxc4 {[%clk 0:02:51.9]} 13... Nbxd5 {[%clk
0:03:05.2]} 14. Rd1 {[%clk 0:02:50]} 14... c6 {[%clk 0:02:50.1]} 15. e4 {[%clk
0:02:51]} 15... Qg4 {[%clk 0:02:46.5]} 16. f3 {[%clk 0:02:41]} 16... Nb6 {[%clk
0:02:41.4]} 17. Rxd8+ {[%clk 0:02:42.1]} 17... Bxd8 {[%clk 0:02:41.8]} 18. Qe2
{[%clk 0:02:36.1]} 18... Qe6 {[%clk 0:02:40.9]} 19. Be3 {[%clk 0:02:34.9]} 19...
O-O {[%clk 0:02:38.9]} 20. Rd1 {[%clk 0:02:35.7]} 20... Be7 {[%clk 0:02:11.5]}
21. b3 {[%clk 0:02:32.8]} 21... Ra8 {[%clk 0:01:58]} 22. h4 {[%clk 0:02:25.3]}
22... Rd8 {[%clk 0:01:38.5]} 23. Kh2 {[%clk 0:02:21.5]} 23... Rxd1 {[%clk
0:01:36.2]} 24. Qxd1 {[%clk 0:02:23.4]} 24... Qc8 {[%clk 0:01:36.7]} 25. Bh3
{[%clk 0:02:18.8]} 25... Qc7 {[%clk 0:01:37.3]} 26. g4 {[%clk 0:02:17.2]} 26...
Qd6 {[%clk 0:01:11.6]} 27. Qe2 {[%clk 0:02:10.5]} 27... Ne8 {[%clk 0:01:01.4]}
28. g5 {[%clk 0:02:09.7]} 28... Nc7 {[%clk 0:01:02.4]} 29. h5 {[%clk 0:01:43.1]}
29... Ne6 {[%clk 0:00:58.8]} 30. g6 {[%clk 0:01:44.6]} 30... hxg6 {[%clk
0:00:58.7]} 31. hxg6 {[%clk 0:01:46.5]} 31... fxg6 {[%clk 0:00:57.2]} 32. Qg2
{[%clk 0:01:32.5]} 32... Nf4 {[%clk 0:00:54.1]} 33. Bxf4 {[%clk 0:01:30.5]}
33... exf4 {[%clk 0:00:56]} 34. e5 {[%clk 0:01:22.3]} 34... Qxe5 {[%clk
0:00:27.7]} 35. Qxg6 {[%clk 0:01:23.2]} 35... Qf6 {[%clk 0:00:28.6]} 36. Qe8+
{[%clk 0:01:20.2]} 36... Bf8 {[%clk 0:00:21.4]} 37. Ne4 {[%clk 0:01:18.5]} 37...
Qb2+ {[%clk 0:00:20.5]} 38. Kg1 {[%clk 0:01:09.7]} 38... Qa1+ {[%clk 0:00:20.8]}
39. Kh2 {[%clk 0:01:09.7]} 39... Qxa2+ {[%clk 0:00:21.2]} 40. Kg1 {[%clk
0:01:05.1]} 40... Qa1+ {[%clk 0:00:22.1]} 41. Kh2 {[%clk 0:01:05.5]} 41... Qb2+
{[%clk 0:00:23]} 42. Kg1 {[%clk 0:01:06.3]} 42... Qb1+ {[%clk 0:00:24.4]} 43.
Kg2 {[%clk 0:01:06.6]} 43... Qc2+ {[%clk 0:00:22.9]} 44. Kg1 {[%clk 0:00:38.7]}
44... Qd1+ {[%clk 0:00:18.7]} 45. Kg2 {[%clk 0:00:36.2]} 45... Qe2+ {[%clk
0:00:18.7]} 46. Kg1 {[%clk 0:00:37.5]} 46... Qe3+ {[%clk 0:00:16.7]} 47. Kg2
{[%clk 0:00:37.2]} 47... Qe2+ {[%clk 0:00:17.3]} 48. Kg1 {[%clk 0:00:38.3]}
48... Qe3+ {[%clk 0:00:11.3]} 49. Kg2 {[%clk 0:00:39.3]} 49... Qe2+ {[%clk
0:00:12.5]} 50. Kg1 {[%clk 0:00:40.6]} 1/2-1/2

[Event "*** Titled Tuesday Blitz"]
[Site "Chess.com"]
[Date "2018.12.04"]
[Round "9"]
[White "PchelkinVK"]
[Black "Naruto-K"]
[Result "1-0"]
[WhiteElo "2573"]
[BlackElo "2450"]
[TimeControl "180+2"]
[EndTime "15:10:29 PST"]
[Termination "PchelkinVK won by resignation"]

1. d4 {[%clk 0:03:01.9]} 1... Nf6 {[%clk 0:02:49]} 2. Nc3 {[%clk 0:03:02.8]}
2... e6 {[%clk 0:02:49.9]} 3. e4 {[%clk 0:03:03.4]} 3... d5 {[%clk 0:02:51.1]}
4. e5 {[%clk 0:03:04.9]} 4... Nfd7 {[%clk 0:02:49.9]} 5. Nf3 {[%clk 0:03:06.3]}
5... c5 {[%clk 0:02:51.2]} 6. dxc5 {[%clk 0:03:08.2]} 6... Nc6 {[%clk
0:02:51.9]} 7. Bf4 {[%clk 0:03:09.6]} 7... Bxc5 {[%clk 0:02:52.5]} 8. Bd3 {[%clk
0:03:11.1]} 8... a6 {[%clk 0:02:48]} 9. Qe2 {[%clk 0:03:11.2]} 9... b5 {[%clk
0:02:48]} 10. O-O-O {[%clk 0:03:12.5]} 10... Qb6 {[%clk 0:02:47.5]} 11. Ng5
{[%clk 0:02:36.7]} 11... g6 {[%clk 0:02:20.8]} 12. Nxd5 {[%clk 0:02:25.6]} 12...
exd5 {[%clk 0:02:20.4]} 13. e6 {[%clk 0:02:26.8]} 13... Nf6 {[%clk 0:02:11.6]}
14. exf7+ {[%clk 0:02:03.5]} 14... Kd8 {[%clk 0:01:59.8]} 15. Rhe1 {[%clk
0:01:46.5]} 15... Bg4 {[%clk 0:01:41.9]} 16. f3 {[%clk 0:01:36.9]} 16... Bd7
{[%clk 0:01:42.6]} 17. Ne6+ {[%clk 0:01:32.8]} 17... Kc8 {[%clk 0:01:43.7]} 18.
Be5 {[%clk 0:00:31.7]} 18... Nxe5 {[%clk 0:01:40.7]} 19. Nxc5 {[%clk 0:00:32.5]}
19... Qxc5 {[%clk 0:01:23.4]} 20. Qxe5 {[%clk 0:00:34]} 20... Qc6 {[%clk
0:01:19.5]} 21. Be4 {[%clk 0:00:25.8]} 21... Qe6 {[%clk 0:01:09.6]} 22. Qc3+
{[%clk 0:00:23.2]} 22... Qc6 {[%clk 0:01:07]} 23. Qe5 {[%clk 0:00:22.1]} 23...
Rf8 {[%clk 0:00:52.3]} 24. Rxd5 {[%clk 0:00:20.3]} 24... Nxd5 {[%clk 0:00:45.4]}
25. Bxd5 {[%clk 0:00:21.1]} 25... Qc5 {[%clk 0:00:46.2]} 26. Bxa8 {[%clk
0:00:10.9]} 26... Qxe5 {[%clk 0:00:47.2]} 27. Rxe5 {[%clk 0:00:12.5]} 27... Rxf7
{[%clk 0:00:48.9]} 28. Bd5 {[%clk 0:00:14.1]} 28... Rf6 {[%clk 0:00:49.9]} 29.
Re7 {[%clk 0:00:12.7]} 29... h6 {[%clk 0:00:49.5]} 30. Be4 {[%clk 0:00:13.4]}
30... Kc7 {[%clk 0:00:47.3]} 31. Rg7 {[%clk 0:00:14.8]} 31... g5 {[%clk
0:00:48]} 32. Rg6 {[%clk 0:00:16.4]} 32... Rxg6 {[%clk 0:00:33.7]} 33. Bxg6
{[%clk 0:00:17.7]} 33... b4 {[%clk 0:00:35.6]} 34. Kd2 {[%clk 0:00:18.4]} 34...
Kd6 {[%clk 0:00:33.8]} 35. c3 {[%clk 0:00:19.9]} 35... a5 {[%clk 0:00:27.3]} 36.
cxb4 {[%clk 0:00:21.2]} 36... axb4 {[%clk 0:00:28.5]} 37. a3 {[%clk 0:00:23.1]}
37... bxa3 {[%clk 0:00:29.4]} 38. bxa3 {[%clk 0:00:25]} 38... Kc5 {[%clk
0:00:30.4]} 39. Bf7 {[%clk 0:00:23.6]} 39... Kd4 {[%clk 0:00:31.3]} 40. Bb3
{[%clk 0:00:22.5]} 40... Bb5 {[%clk 0:00:32.7]} 41. g3 {[%clk 0:00:21.1]} 41...
Ba6 {[%clk 0:00:33.3]} 42. Bc2 {[%clk 0:00:20.5]} 42... Bc4 {[%clk 0:00:33.8]}
43. f4 {[%clk 0:00:21.5]} 43... gxf4 {[%clk 0:00:33.9]} 44. gxf4 {[%clk
0:00:23.1]} 44... Ba6 {[%clk 0:00:35.3]} 45. f5 {[%clk 0:00:24.4]} 45... Ke5
{[%clk 0:00:36.4]} 46. Kc3 {[%clk 0:00:25.3]} 46... h5 {[%clk 0:00:30.7]} 47.
Kb4 {[%clk 0:00:26.4]} 47... h4 {[%clk 0:00:31.4]} 48. Kc5 {[%clk 0:00:27.5]}
48... Kf4 {[%clk 0:00:21.3]} 49. f6 {[%clk 0:00:27.3]} 1-0

[Event "*** Titled Tuesday Blitz"]
[Site "Chess.com"]
[Date "2018.12.04"]
[Round "9"]
[White "VerdeNotte"]
[Black "amintabatabaei"]
[Result "0-1"]
[WhiteElo "2835"]
[BlackElo "2745"]
[TimeControl "180+2"]
[EndTime "15:10:31 PST"]
[Termination "amintabatabaei won by resignation"]

1. e4 {[%clk 0:03:01.9]} 1... c5 {[%clk 0:02:58.2]} 2. Nc3 {[%clk 0:03:02.9]}
2... Nc6 {[%clk 0:02:58.4]} 3. f4 {[%clk 0:03:03.5]} 3... g6 {[%clk 0:02:57.6]}
4. Nf3 {[%clk 0:03:04.6]} 4... Bg7 {[%clk 0:02:59.1]} 5. Bb5 {[%clk 0:03:05.8]}
5... Nd4 {[%clk 0:02:56.4]} 6. O-O {[%clk 0:03:06.5]} 6... Nxb5 {[%clk
0:02:53.5]} 7. Nxb5 {[%clk 0:03:08.4]} 7... d6 {[%clk 0:02:54.9]} 8. d3 {[%clk
0:03:07.6]} 8... Nf6 {[%clk 0:02:52.2]} 9. c4 {[%clk 0:03:04.9]} 9... O-O {[%clk
0:02:52.8]} 10. Nc3 {[%clk 0:03:00.5]} 10... Bd7 {[%clk 0:02:51]} 11. Qe1 {[%clk
0:02:54.1]} 11... a6 {[%clk 0:02:51.2]} 12. f5 {[%clk 0:02:48]} 12... b5 {[%clk
0:02:51.5]} 13. Qh4 {[%clk 0:02:46.6]} 13... bxc4 {[%clk 0:02:49]} 14. dxc4
{[%clk 0:02:46.8]} 14... Rb8 {[%clk 0:02:49.8]} 15. Bh6 {[%clk 0:02:36.1]} 15...
Rxb2 {[%clk 0:02:47.7]} 16. Ng5 {[%clk 0:02:35]} 16... Qa5 {[%clk 0:02:27.3]}
17. fxg6 {[%clk 0:02:06.3]} 17... Qxc3 {[%clk 0:01:36.7]} 18. Bxg7 {[%clk
0:02:04]} 18... Qd2 {[%clk 0:01:14.2]} 19. Qg3 {[%clk 0:01:51.9]} 19... Kxg7
{[%clk 0:01:12.6]} 20. Rad1 {[%clk 0:01:03.3]} 20... Qe2 {[%clk 0:01:05.8]} 21.
Nxh7 {[%clk 0:00:19.8]} 21... Nxe4 {[%clk 0:00:52]} 22. Qf3 {[%clk 0:00:11.1]}
22... Qxf3 {[%clk 0:00:32.3]} 23. gxf3 {[%clk 0:00:13]} 23... Nd2 {[%clk
0:00:26.1]} 24. Nxf8 {[%clk 0:00:13.3]} 24... Kxf8 {[%clk 0:00:27.6]} 25. Rf2
{[%clk 0:00:10.9]} 25... Nxc4 {[%clk 0:00:28.9]} 26. Rxb2 {[%clk 0:00:06.9]}
26... Nxb2 {[%clk 0:00:30.8]} 27. Rb1 {[%clk 0:00:07.8]} 27... Nd3 {[%clk
0:00:32.2]} 28. Rb7 {[%clk 0:00:08.3]} 28... Be6 {[%clk 0:00:28.9]} 29. g7+
{[%clk 0:00:06.3]} 29... Kxg7 {[%clk 0:00:30.1]} 30. Rxe7 {[%clk 0:00:07.8]}
30... c4 {[%clk 0:00:31.7]} 31. Rc7 {[%clk 0:00:07.3]} 31... Nc5 {[%clk
0:00:32.9]} 32. Kf2 {[%clk 0:00:07.4]} 32... c3 {[%clk 0:00:34.3]} 33. Ke3
{[%clk 0:00:08.6]} 33... Kf6 {[%clk 0:00:26.7]} 34. Rc6 {[%clk 0:00:08.5]} 34...
Ke5 {[%clk 0:00:27.5]} 35. h4 {[%clk 0:00:05.8]} 35... Bxa2 {[%clk 0:00:26.1]}
36. h5 {[%clk 0:00:05.4]} 36... Bb1 {[%clk 0:00:25.4]} 37. Rc7 {[%clk
0:00:04.6]} 37... c2 {[%clk 0:00:20.5]} 38. Kd2 {[%clk 0:00:03.8]} 38... Nb3+
{[%clk 0:00:21.8]} 39. Ke3 {[%clk 0:00:03.7]} 39... c1=Q+ {[%clk 0:00:23.7]} 40.
Rxc1 {[%clk 0:00:05]} 40... Nxc1 {[%clk 0:00:25.6]} 41. f4+ {[%clk 0:00:04.3]}
41... Kd5 {[%clk 0:00:26.3]} 42. f5 {[%clk 0:00:04]} 42... Bxf5 {[%clk
0:00:27.1]} 43. Kf4 {[%clk 0:00:05.9]} 43... Bh7 {[%clk 0:00:28.1]} 44. Kg5
{[%clk 0:00:07.4]} 44... a5 {[%clk 0:00:29.7]} 45. Kh6 {[%clk 0:00:08.7]} 45...
Bb1 {[%clk 0:00:30.9]} 46. Kg7 {[%clk 0:00:10]} 46... a4 {[%clk 0:00:32.8]} 47.
h6 {[%clk 0:00:10.8]} 47... a3 {[%clk 0:00:34.7]} 0-1

[Event "*** Titled Tuesday Blitz"]
[Site "Chess.com"]
[Date "2018.12.04"]
[Round "9"]
[White "penguingm1"]
[Black "Panchenko_Dmitry"]
[Result "1-0"]
[WhiteElo "2790"]
[BlackElo "2562"]
[TimeControl "180+2"]
[EndTime "15:10:37 PST"]
[Termination "penguingm1 won on time"]

1. d4 {[%clk 0:03:01.9]} 1... d5 {[%clk 0:03:00.8]} 2. Bf4 {[%clk 0:03:02.7]}
2... Nf6 {[%clk 0:03:01.2]} 3. e3 {[%clk 0:03:03.9]} 3... c5 {[%clk 0:03:01.9]}
4. dxc5 {[%clk 0:03:05.8]} 4... Nc6 {[%clk 0:02:58.6]} 5. Bb5 {[%clk 0:03:07.2]}
5... e6 {[%clk 0:02:53.8]} 6. b4 {[%clk 0:03:06.9]} 6... a5 {[%clk 0:02:49.4]}
7. c3 {[%clk 0:03:08.1]} 7... Ne4 {[%clk 0:02:44.3]} 8. f3 {[%clk 0:02:56.8]}
8... Nf6 {[%clk 0:02:22]} 9. Ne2 {[%clk 0:02:55.3]} 9... Be7 {[%clk 0:02:19.1]}
10. O-O {[%clk 0:02:39.4]} 10... O-O {[%clk 0:02:19.3]} 11. Nd4 {[%clk
0:02:30.9]} 11... Bd7 {[%clk 0:02:03.3]} 12. Bxc6 {[%clk 0:02:22.2]} 12... Bxc6
{[%clk 0:01:56.1]} 13. a4 {[%clk 0:02:03.8]} 13... Be8 {[%clk 0:01:46.3]} 14.
Nd2 {[%clk 0:02:00.5]} 14... Nh5 {[%clk 0:01:42.8]} 15. Be5 {[%clk 0:01:59.4]}
15... f6 {[%clk 0:01:19.2]} 16. Bg3 {[%clk 0:01:30.1]} 16... Nxg3 {[%clk
0:01:19]} 17. hxg3 {[%clk 0:01:32]} 17... Qc8 {[%clk 0:01:14.5]} 18. Nb5 {[%clk
0:01:26.8]} 18... e5 {[%clk 0:01:08.4]} 19. e4 {[%clk 0:01:20.7]} 19... Bf7
{[%clk 0:01:06.8]} 20. exd5 {[%clk 0:01:19.9]} 20... Bxd5 {[%clk 0:01:06.7]} 21.
Ne4 {[%clk 0:01:21.5]} 21... Qc6 {[%clk 0:00:58.6]} 22. Nbd6 {[%clk 0:01:14.9]}
22... Bxd6 {[%clk 0:00:47.6]} 23. Nxd6 {[%clk 0:01:12.9]} 23... b6 {[%clk
0:00:46.3]} 24. Nf5 {[%clk 0:00:59.9]} 24... Rfe8 {[%clk 0:00:41.1]} 25. Qd3
{[%clk 0:00:35.5]} 25... e4 {[%clk 0:00:36.9]} 26. fxe4 {[%clk 0:00:33.4]} 26...
Bxe4 {[%clk 0:00:37.4]} 27. Qc4+ {[%clk 0:00:34.8]} 27... Kh8 {[%clk 0:00:28.1]}
28. b5 {[%clk 0:00:18.9]} 28... Qxc5+ {[%clk 0:00:23.5]} 29. Qxc5 {[%clk
0:00:19.6]} 29... bxc5 {[%clk 0:00:25]} 30. Nd6 {[%clk 0:00:21.1]} 30... Re6
{[%clk 0:00:26.1]} 31. Rfd1 {[%clk 0:00:16.9]} 31... f5 {[%clk 0:00:11.1]} 32.
c4 {[%clk 0:00:16]} 32... g6 {[%clk 0:00:10.4]} 33. Rd2 {[%clk 0:00:15.7]} 33...
Kg7 {[%clk 0:00:10.8]} 34. Re1 {[%clk 0:00:13.1]} 34... Kf6 {[%clk 0:00:07]} 35.
Re3 {[%clk 0:00:13.9]} 35... Ke7 {[%clk 0:00:03.7]} 36. Nxe4 {[%clk 0:00:14.3]}
36... fxe4 {[%clk 0:00:04.6]} 37. Rd5 {[%clk 0:00:15.3]} 37... Rd8 {[%clk
0:00:04.7]} 38. Rxc5 {[%clk 0:00:14.4]} 38... Rd1+ {[%clk 0:00:05.2]} 39. Kh2
{[%clk 0:00:15.1]} 39... Ra1 {[%clk 0:00:06]} 40. Rc7+ {[%clk 0:00:15.3]} 40...
Kf6 {[%clk 0:00:06.7]} 41. c5 {[%clk 0:00:13.1]} 41... Rxa4 {[%clk 0:00:07.4]}
42. b6 {[%clk 0:00:14.2]} 42... Rb4 {[%clk 0:00:08.4]} 43. b7 {[%clk 0:00:14.4]}
43... a4 {[%clk 0:00:07.3]} 44. c6 {[%clk 0:00:14.8]} 44... Re8 {[%clk
0:00:06.9]} 45. Rc8 {[%clk 0:00:15.8]} 1-0

[Event "*** Titled Tuesday Blitz"]
[Site "Chess.com"]
[Date "2018.12.04"]
[Round "9"]
[White "Morshynska"]
[Black "LuisFSiles"]
[Result "1/2-1/2"]
[WhiteElo "2066"]
[BlackElo "2225"]
[TimeControl "180+2"]
[EndTime "15:10:46 PST"]
[Termination "Game drawn by agreement"]

1. d4 {[%clk 0:03:01.9]} 1... Nf6 {[%clk 0:02:56.4]} 2. c4 {[%clk 0:03:00.3]}
2... c5 {[%clk 0:02:56.1]} 3. e3 {[%clk 0:02:57.7]} 3... g6 {[%clk 0:02:56]} 4.
Nf3 {[%clk 0:02:55.1]} 4... Bg7 {[%clk 0:02:57.1]} 5. Nc3 {[%clk 0:02:54.4]}
5... O-O {[%clk 0:02:57]} 6. Be2 {[%clk 0:02:51.7]} 6... cxd4 {[%clk 0:02:53.9]}
7. Nxd4 {[%clk 0:02:43.9]} 7... Nc6 {[%clk 0:02:51.6]} 8. O-O {[%clk 0:02:39.7]}
8... d6 {[%clk 0:02:40.8]} 9. b3 {[%clk 0:02:27.8]} 9... a6 {[%clk 0:02:27.1]}
10. Bb2 {[%clk 0:02:25.4]} 10... Rb8 {[%clk 0:02:26.5]} 11. Rc1 {[%clk 0:02:18]}
11... Bd7 {[%clk 0:02:20]} 12. Qd2 {[%clk 0:02:09.8]} 12... Nxd4 {[%clk
0:02:19]} 13. Qxd4 {[%clk 0:01:54]} 13... b5 {[%clk 0:02:12.1]} 14. Nd5 {[%clk
0:01:32.7]} 14... bxc4 {[%clk 0:02:01.1]} 15. Bxc4 {[%clk 0:01:27.7]} 15... Bb5
{[%clk 0:01:54.7]} 16. Nxf6+ {[%clk 0:01:08.5]} 16... Bxf6 {[%clk 0:01:50.7]}
17. Qd2 {[%clk 0:01:07.4]} 17... Bxb2 {[%clk 0:01:48.1]} 18. Qxb2 {[%clk
0:01:09.3]} 18... Qb6 {[%clk 0:01:22.2]} 19. Rc2 {[%clk 0:00:51.6]} 19... Bc6
{[%clk 0:01:12.9]} 20. Rfc1 {[%clk 0:00:47.8]} 20... Be4 {[%clk 0:01:12.8]} 21.
Rc3 {[%clk 0:00:41.7]} 21... a5 {[%clk 0:00:58.8]} 22. Qd2 {[%clk 0:00:31.2]}
22... e6 {[%clk 0:00:47.5]} 23. Bd3 {[%clk 0:00:23.2]} 23... Bb7 {[%clk
0:00:37]} 24. Bf1 {[%clk 0:00:20.5]} 24... Qb4 {[%clk 0:00:28.6]} 25. Qc2 {[%clk
0:00:17.3]} 25... Be4 {[%clk 0:00:24]} 26. Bd3 {[%clk 0:00:17.7]} 26... Bb7
{[%clk 0:00:20.5]} 27. h3 {[%clk 0:00:17.2]} 27... Rbc8 {[%clk 0:00:19.9]} 28.
Bf1 {[%clk 0:00:09.6]} 28... Rxc3 {[%clk 0:00:20.7]} 29. Qxc3 {[%clk 0:00:11.5]}
29... Rc8 {[%clk 0:00:21.3]} 30. Qxb4 {[%clk 0:00:11.1]} 30... axb4 {[%clk
0:00:22.5]} 31. Rxc8+ {[%clk 0:00:11.8]} 31... Bxc8 {[%clk 0:00:24]} 32. f3
{[%clk 0:00:12.9]} 32... d5 {[%clk 0:00:25]} 33. Kf2 {[%clk 0:00:14.1]} 33...
Kf8 {[%clk 0:00:26.4]} 34. Bb5 {[%clk 0:00:15.1]} 34... Ke7 {[%clk 0:00:27.1]}
35. Ke2 {[%clk 0:00:16.2]} 35... Kd6 {[%clk 0:00:28.5]} 36. Kd3 {[%clk
0:00:16.5]} 36... Kc5 {[%clk 0:00:29.9]} 37. Be8 {[%clk 0:00:15.9]} 37... f6
{[%clk 0:00:30.7]} 38. f4 {[%clk 0:00:15.7]} 38... e5 {[%clk 0:00:28.7]} 39. g4
{[%clk 0:00:14.8]} 39... e4+ {[%clk 0:00:25]} 40. Kd2 {[%clk 0:00:13.7]} 40...
d4 {[%clk 0:00:26.1]} 41. Bf7 {[%clk 0:00:14.1]} 41... d3 {[%clk 0:00:21.6]} 42.
Bg8 {[%clk 0:00:11.8]} 42... Bb7 {[%clk 0:00:21.4]} 43. Bxh7 {[%clk 0:00:11.3]}
43... g5 {[%clk 0:00:22.7]} 44. fxg5 {[%clk 0:00:10.2]} 44... fxg5 {[%clk
0:00:24]} 45. Bf5 {[%clk 0:00:11.6]} 45... Kd5 {[%clk 0:00:24.9]} 46. Bg6 {[%clk
0:00:12.4]} 46... Ke5 {[%clk 0:00:26.1]} 47. Bf7 {[%clk 0:00:12.8]} 47... Bc8
{[%clk 0:00:26.9]} 48. Bc4 {[%clk 0:00:13.2]} 48... Bd7 {[%clk 0:00:27.8]} 49.
Bf7 {[%clk 0:00:13.2]} 1/2-1/2